Cogmind - Beta 15 @@@ ROGUE MODE // 2025.09.19 @ 13:49:02 Player: Petvaria Result: Self-destructed Performance ------------- Evolutions (5) 2500 Regions Visited (7) 1400 Robots Destroyed (50) 250 Value Destroyed (1671) 1671 Prototype IDs (3) 60 Alien Tech Used (0) 0 Bonus (1580) 1580 TOTAL SCORE: 7461 Bonus ------- High Alert Combat Kills 41 Follower Combat Kills 1239 Registered with UFD 300 Cogmind --------- Core Integrity 75/1000 Matter 293/300 Energy 815/815 System Corruption 14% Temperature Cool (0) Movement Walking (120) Location -5/Cetus Parts ------- > --- POWER (1) -------- Neutrino Core > --- PROPULSION (5) --- Flexi-carbon Leg Flexi-carbon Leg Flexi-carbon Leg Flexi-carbon Leg Myomer Leg > --- UTILITY (9) ------ High-capacity Storage Unit Advanced Energy Well Armor Integrity Analyzer Improved Weapon Shielding Improved Medium Armor Plating Improved Medium Armor Plating Medium Reflective Plating Remote Force Field Improved Hacking Suite > --- WEAPON (2) ------- Companion Sword > --- INVENTORY (20) --- Light Nuclear Core Fission Core Neutrino Core Improved Treads Carbon-fiber Leg Carbon-fiber Leg Carbon-fiber Leg Flexi-carbon Leg Flexi-carbon Leg Flexi-carbon Leg Flexi-carbon Leg Myomer Leg Deep Structural Scanner Surveybot 17 Chip Improved Medium Armor Plating Improved Medium Armor Plating Remote Force Field System Shield Improved Plasma Cutter CPS Tube (2) Peak State ------------ > --- POWER ------------ Neutrino Core > --- PROPULSION ------- Flexi-carbon Leg Flexi-carbon Leg Flexi-carbon Leg Flexi-carbon Leg Myomer Leg > --- UTILITY ---------- High-capacity Storage Unit Advanced Energy Well Armor Integrity Analyzer Improved Weapon Shielding Improved Medium Armor Plating Improved Medium Armor Plating Medium Reflective Plating Remote Force Field Improved Hacking Suite > --- WEAPON ----------- Companion Sword > --- INVENTORY -------- Light Nuclear Core Fission Core Neutrino Core Neutrino Core Improved Treads Armored Medium Treads Carbon-fiber Leg Flexi-carbon Leg Flexi-carbon Leg Flexi-carbon Leg Flexi-carbon Leg Myomer Leg Deep Structural Scanner Surveybot 17 Chip Improved Medium Armor Plating Improved Medium Armor Plating Remote Force Field System Shield Improved Plasma Cutter CPS Tube [Rating: 87] Favorites ----------- Power Neutrino Core Engine Improved Deuterium Engine Power Core Neutrino Core Propulsion Flexi-carbon Leg Treads Light Treads Leg Flexi-carbon Leg Wheel Compact Wheel Utility High-capacity Storage Unit Device Remote Force Field Storage High-capacity Storage Unit Processor Advanced Melee Analysis Suite Hackware Improved Hacking Suite Protection Improved Medium Armor Plating Weapon Companion Sword Energy Gun Medium Laser Ballistic Gun Heavy Assault Rifle Special Weapon Improved Plasma Cutter Impact Weapon Hammer Slashing Weapon Companion Sword Build | -11 -10 -10 -7 -7 -5 -5 -5 ------- Run | Yrd Mat Sub Rec Scr Fac Ext Cet Slots Evolved 10 | . . . . . 10 . . Power . | . . . . . . . . Propulsion 3 | . . . . . 3 . . Utility 7 | . . . . . 7 . . Weapon . | . . . . . . . . Parts Attached 74 | . 11 3 7 3 29 21 . Power 12 | . 1 . 1 1 4 5 . Engine 6 | . 1 . . 1 4 . . Core 6 | . . . 1 . . 5 . Reactor . | . . . . . . . . Propulsion 29 | . 2 . 4 1 15 7 . Treads 7 | . 1 . 2 . 3 1 . Leg 16 | . . . . . 10 6 . Wheel 6 | . 1 . 2 1 2 . . Hover . | . . . . . . . . Flight . | . . . . . . . . Utility 22 | . 3 1 . 1 9 8 . Device 3 | . . 1 . . 1 1 . Storage 2 | . 1 . . . . 1 . Processor 4 | . 1 . . . 2 1 . Hackware 2 | . . . . . 1 1 . Protection 11 | . 1 . . 1 5 4 . Artifact . | . . . . . . . . Weapon 11 | . 5 2 2 . 1 1 . Energy Gun 2 | . 1 1 . . . . . Energy Cannon . | . . . . . . . . Ballistic Gun 6 | . 3 1 2 . . . . Ballistic Cannon . | . . . . . . . . Launcher . | . . . . . . . . Special Weapon 1 | . . . . . . 1 . Impact Weapon 1 | . 1 . . . . . . Slashing Weapon 1 | . . . . . 1 . . Piercing Weapon . | . . . . . . . . Special Melee Weapon . | . . . . . . . . Unidentified Prototypes 3 | . . 1 . . 1 1 . Parts Lost 32 | . . 1 6 . 23 2 . Power 8 | . . . 2 . 5 1 . Propulsion 15 | . . 1 3 . 11 . . Utility 8 | . . . . . 7 1 . Weapon 1 | . . . 1 . . . . Highest Loss Streak 10 | . . 1 4 . 10 1 . To Critical Strikes . | . . . . . . . . Average Backups 11 | 1 9 11 12 11 12 10 20 Power 1 | . . 1 1 2 1 1 3 Propulsion 3 | 1 1 1 . 5 5 4 9 Utility 3 | . . . 1 3 4 4 6 Weapon 1 | . 7 9 8 . . . . Tool/Special . | . . . . . . . . Unused Backups 17 | . . . . 3 . . 14 Power 1 | . . . . . . . 1 Propulsion 7 | . . . . . . . 7 Utility 5 | . . . . . . . 5 Weapon 2 | . . . . 2 . . . Tool/Special 2 | . . . . 1 . . 1 Average Slot Usage (%) 66 | . 90 98 70 51 56 70 94 Engine 4 | . 9 14 2 8 1 . . Core 1 | . . . 3 . . 4 5 Treads 7 | . 11 13 12 11 5 2 . Leg 7 | . . . . . 7 21 29 Wheel 8 | . 13 14 9 16 4 . . Storage 9 | . 13 14 14 14 5 5 11 Processor 4 | . 13 12 . . 8 2 5 Hackware 1 | . . . . . 2 3 5 Protection 7 | . . . . . 11 17 23 Energy Gun 2 | . 9 14 8 . . . . Ballistic Gun 3 | . 13 13 18 . . . . Slashing Weapon 2 | . . . . . 4 5 5 Peak Build Rating 87 | . 11 12 11 16 68 87 86 Average Rating 30 | . 9 10 8 8 40 60 86 On Entrance 18 | . . 11 7 9 16 22 86 Naked Turns 3 | . 3 . . . . . . Heaviest Build 92 | . 48 48 50 52 78 92 92 Greatest Support 105 | 3 16 16 20 32 88 105 105 Greatest Overweight (x) 15 | . 2 2 15 3 3 2 . Average Overweight (x) 1 | . 1 2 2 2 . . . Largest Inventory Capacity 20 | 5 20 20 20 20 20 20 20 Average Capacity 19 | 5 19 20 20 20 20 20 20 Most Carried 20 | 5 11 14 15 20 20 20 20 Average Carried 11 | 2 9 12 13 12 12 10 20 Final Capacity 20 | 5 20 20 20 20 20 20 20 Final Carried 20 | 5 11 14 15 20 4 20 20 Class Distribution -------------------- 74% | Mutant 16% | Commander-Mutant 8% | Scavenger-Mutant Dominant Class ---------------- Mutant | -10/Materials Mutant | -10/Subcaves Mutant | -7/Recycling Mutant | -7/Scraptown Mutant | -5/Factory Commander-Mutant | -5/Extension Scavenger-Mutant | -5/Cetus Resources | -11 -10 -10 -7 -7 -5 -5 -5 ----------- Run | Yrd Mat Sub Rec Scr Fac Ext Cet Matter Collected 1269 | . 364 60 195 10 311 329 . Remotely . | . . . . . . . . Salvage Created 3072 | . 378 35 618 . 1285 756 . Parts 125 | . 16 2 23 . 62 22 . Haulers Intercepted . | . . . . . . . . Recyclers Shooed 10 | . 1 . 7 . 2 . . Parts Field Recycled . | . . . . . . . . Retrieved Matter . | . . . . . . . . Parts Self-Destructed . | . . . . . . . . Prevented . | . . . . . . . . Kills | -11 -10 -10 -7 -7 -5 -5 -5 ------- Run | Yrd Mat Sub Rec Scr Fac Ext Cet Combat Hostiles Destroyed 27 | . 6 1 2 . 14 4 . Melee 18 | . . . . . 14 4 . Guns 9 | . 6 1 2 . . . . Classes Destroyed 10 | . 3 1 2 . 3 1 . Worker 3 | . 2 . . . 1 . . Builder 4 | . 4 . . . . . . Recycler 12 | . . . 7 . 2 3 . Mechanic 1 | . . . . . . 1 . Operator 2 | . . . . . 2 . . Watcher 1 | . . . . . 1 . . Grunt 15 | . 6 . . . 7 2 . Sentry 7 | . . . 2 . 3 2 . Programmer 4 | . . . . . 4 . . Subdweller 1 | . . 1 . . . . . Best Kill Streak 6 | . 4 1 6 . 4 3 . Combat Bots Only 3 | . 2 1 1 . 3 1 . Max Kills in Single Turn 1 | . 1 1 1 . 1 1 . Gunslinging . | . . . . . . . . Exploded . | . . . . . . . . Melee 1 | . . . . . 1 1 . Uniques/NPCs Destroyed 1 | . . . . . . 1 . A7 (-5/Extension) Combat | -11 -10 -10 -7 -7 -5 -5 -5 -------- Run | Yrd Mat Sub Rec Scr Fac Ext Cet Hostile Shots Fired 436 | . 28 15 93 . 255 45 . Missed 114 | . 4 4 24 . 71 11 . Hits 322 | . 24 11 69 . 184 34 . Projectile 322 | . 24 11 69 . 184 34 . AOE 4 | . . . . . 4 . . Critical Strikes 11 | . . . . . 11 . . Actively Blocked 1 | . . . . . 1 . . Damage Taken 6678 | . 326 131 506 . 4966 749 . Core 1077 | . 10 37 105 . 821 104 . Absorbed by Shields 306 | . . . . . 90 216 . Redirected to Shielding 101 | . . . . . 101 . . Ignored by Resistances 37 | . . . . . . 37 . Core Remaining (%) 69 | 100 . . . 39 . . . Volleys Fired 58 | . 24 2 32 . . . . Largest 2 | . 2 2 2 . . . . Hottest 73 | . 73 73 73 . . . . Shots Fired 114 | . 48 4 62 . . . . Gun 114 | . 48 4 62 . . . . Cannon . | . . . . . . . . Launcher . | . . . . . . . . Special . | . . . . . . . . Kinetic 69 | . 24 2 43 . . . . Thermal 45 | . 24 2 19 . . . . Explosive . | . . . . . . . . Electromagnetic . | . . . . . . . . Robot Hit Streak 15 | . 13 5 15 . . . . Robot Miss Streak 2 | . 1 . 2 . . . . Penetration Max . | . . . . . . . . Secondary Targets . | . . . . . . . . Shots Hit Robots 198 | . 41 4 47 . 80 26 . Core Hits 80 | . 16 1 19 . 31 13 . Critical Kills . | . . . . . . . . Critical Parts Destroyed 4 | . 3 . 1 . . . . Critical Strikes 11 | . 4 . 3 . 4 . . Burn 3 | . 1 . 2 . . . . Destroy 1 | . . . 1 . . . . Smash 3 | . 3 . . . . . . Melee Attacks 151 | . 11 5 . . 97 38 . Impact 16 | . 11 5 . . . . . Slashing 135 | . . . . . 97 38 . Piercing . | . . . . . . . . Sneak Attacks 16 | . 5 . . . 7 4 . Combat Hostiles . | . . . . . . . . Follow-up Attacks 1 | . . . . . . 1 . Damage Inflicted 6323 | . 804 60 702 . 3568 1189 . Guns 1270 | . 508 60 702 . . . . Cannons . | . . . . . . . . Explosions . | . . . . . . . . Melee 5047 | . 296 . . . 3562 1189 . Ramming 6 | . . . . . 6 . . Kinetic 836 | . 289 34 513 . . . . Thermal 434 | . 219 26 189 . . . . Explosive . | . . . . . . . . Electromagnetic . | . . . . . . . . Impact 296 | . 296 . . . . . . Slashing 4751 | . . . . . 3562 1189 . Piercing . | . . . . . . . . Highest Corruption 14 | . . . . . 14 14 14 Average Corruption 13 | . . . . . 11 14 14 Corruption Purged . | . . . . . . . . Corruption Blocked . | . . . . . . . . Effects 82 | . . . . . 14 67 1 Message Errors 20 | . . . . . 1 18 1 Matter Fused 18 | . . . . . 5 13 . Heat Flow Errors 10 | . . . . . 1 9 . Energy Discharges 11 | . . . . . 2 9 . Data Loss (minor) 12 | . . . . . 3 9 . Data Loss (major) 9 | . . . . . 1 8 . Alerts 2 | . . . . . 1 1 . Overload Shots . | . . . . . . . . Overflow Damage 607 | . 254 . . . 297 56 . Projectiles . | . . . . . . . . Explosions . | . . . . . . . . Melee 607 | . 254 . . . 297 56 . Knockbacks 2 | . 2 . . . . . . Impact 1 | . 1 . . . . . . Kinetic . | . . . . . . . . Secondary 1 | . 1 . . . . . . Self-Inflicted Damage . | . . . . . . . . Shots . | . . . . . . . . Rammed . | . . . . . . . . Targets Rammed 1 | . . . . . 1 . . Kicked 1 | . . . . . 1 . . Crushed . | . . . . . . . . Highest Temperature 261 | . 157 . 95 . 145 261 . Average Temperature 70 | . 44 . 36 . 70 111 . Received Heat Transfer 1137 | . 177 18 144 . 588 210 . Effects 2 | . . . . . . 2 . Energy Bleed 1 | . . . . . . 1 . Interference 1 | . . . . . . 1 . Siege Activations . | . . . . . . . . Martial Activations . | . . . . . . . . Shielding Activations . | . . . . . . . . Robots Disrupted . | . . . . . . . . Combat Hostiles . | . . . . . . . . Robots Corrupted 4 | . 4 . . . . . . Combat Hostiles . | . . . . . . . . Parts Fried 7 | . 7 . . . . . . Impact Corruptions 9 | . 9 . . . . . . Robots Melted . | . . . . . . . . Combat Hostiles . | . . . . . . . . Parts Melted 2 | . 1 . 1 . . . . Heat Transferred 1517 | . 740 74 703 . . . . Parts Sabotaged . | . . . . . . . . Parts Stolen . | . . . . . . . . Parts Stripped . | . . . . . . . . Power Chain Reactions . | . . . . . . . . Alert | -11 -10 -10 -7 -7 -5 -5 -5 ------- Run | Yrd Mat Sub Rec Scr Fac Ext Cet Maximum Alert Level 3 | . . . . . . 3 2 Low Security (%) 79 | 100 100 . 100 . 100 59 . Level 1 3 | . . . . . . 6 . Level 2 3 | . . . . . . 6 100 Level 3 13 | . . . . . . 27 . Level 4 . | . . . . . . . . Level 5 . | . . . . . . . . High Security . | . . . . . . . . Max Security . | . . . . . . . . Peak Influence 943 | . 69 . 26 . 76 943 517 Initial 517 | . . . 12 . . . 517 Average 168 | . 24 . 6 . 23 325 513 Influence Increases 2367 | . 178 45 76 . 504 1564 . Destroy 0b10 Robot/C 1200 | . 120 . 40 . 280 760 . Destroy 0b10 Robot/NC 140 | . 30 . 35 . 30 45 . Destroy Leader 178 | . 20 . . . 72 86 . Allied During Kill 615 | . . . . . . 615 . Successful Hack 25 | . . . . . 12 13 . Disable Machine 15 | . . . . . . 15 . Destroy Structure 59 | . 8 . 1 . 20 30 . Lose Combat Pursuer 135 | . . 45 . . 90 . . Influence Decreases 1860 | . 173 25 101 . 504 639 418 Entered New Map 424 | . . 3 13 . . . 408 Time Decay 1069 | . 173 12 88 . 307 479 10 Lost Part 207 | . . 10 . . 197 . . Lost Ally 160 | . . . . . . 160 . Squads Dispatched 10 | . . . . . 6 4 . Investigation 2 | . . . . . . 2 . Extermination 3 | . . . . . 3 . . Reinforcement 5 | . . . . . 3 2 . Assault . | . . . . . . . . Garrison . | . . . . . . . . Intercept . | . . . . . . . . Searches Triggered . | . . . . . . . . Construction Impeded 2 | . . . . . . 2 . Haulers Reinforced . | . . . . . . . . Active Scanning Responses . | . . . . . . . . Cargo Convoy Interrupts . | . . . . . . . . Stealth | -11 -10 -10 -7 -7 -5 -5 -5 --------- Run | Yrd Mat Sub Rec Scr Fac Ext Cet Distress Signals 8 | . . . . . 4 3 1 Communications Jammed . | . . . . . . . . Distress Signals . | . . . . . . . . Times Spotted 88 | . 10 6 2 . 35 35 . Peak Tracking Total 9 | . 3 5 1 . 9 6 . Tactical Retreats 6 | . . 1 . . 5 . . Traps | -11 -10 -10 -7 -7 -5 -5 -5 ------- Run | Yrd Mat Sub Rec Scr Fac Ext Cet Traps Triggered 3 | . . . . . 2 1 . Indirectly . | . . . . . . . . Trap Hack Attempts . | . . . . . . . . Triggered . | . . . . . . . . Disarmed . | . . . . . . . . Reprogrammed . | . . . . . . . . Reused . | . . . . . . . . Traps Extracted . | . . . . . . . . Installed . | . . . . . . . . Triggered . | . . . . . . . . Machines | -11 -10 -10 -7 -7 -5 -5 -5 ---------- Run | Yrd Mat Sub Rec Scr Fac Ext Cet Machines Disabled 1 | . . . . . . 1 . Max in Single Turn 1 | . . . . . . 1 . Machines Repaired . | . . . . . . . . Machines Dismantled 1 | . . . . . . 1 . Machines Sabotaged . | . . . . . . . . Overloaded Fab Kills . | . . . . . . . . Hacking | -11 -10 -10 -7 -7 -5 -5 -5 --------- Run | Yrd Mat Sub Rec Scr Fac Ext Cet Machines Accessed 12 | . . . . 4 2 6 . Terminals 8 | . . . . . 2 6 . Fabricators . | . . . . . . . . Repair Stations . | . . . . . . . . Recycling Units . | . . . . . . . . Scanalyzers . | . . . . . . . . Garrison Access . | . . . . . . . . Total Hacks 40 | . . . . 26 2 12 . Successful 32 | . . . . 26 2 4 . Failed 8 | . . . . . . 8 . Catastrophic 1 | . . . . . . 1 . Database Lockouts . | . . . . . . . . Manual 1 | . . . . . . 1 . Terminals 14 | . . . . . 2 12 . Fabricators . | . . . . . . . . Repair Stations . | . . . . . . . . Recycling Units . | . . . . . . . . Scanalyzers . | . . . . . . . . Garrison Access . | . . . . . . . . Terminal Hacks 32 | . . . . 26 2 4 . Record 21 | . . . . 21 . . . Robot Analysis 4 | . . . . 4 . . . Open Door 5 | . . . . 1 1 3 . Recall Investigation 1 | . . . . . . 1 . Registered Components 1 | . . . . . 1 . . Fabricator Hacks . | . . . . . . . . Repair Station Hacks . | . . . . . . . . Recycling Unit Hacks . | . . . . . . . . Scanalyzer . | . . . . . . . . Garrison Access Hacks . | . . . . . . . . Unauthorized Hacks . | . . . . . . . . Terminals . | . . . . . . . . Fabricators . | . . . . . . . . Repair Stations . | . . . . . . . . Recycling Units . | . . . . . . . . Scanalyzers . | . . . . . . . . Garrison Access . | . . . . . . . . Data Cores Recovered 1 | . . . . . 1 . . Used 1 | . . . . . 1 . . Hacking Detections 6 | . . . . . 1 5 . Full Trace Events 2 | . . . . . . 2 . Feedback Events . | . . . . . . . . Feedback Blocked . | . . . . . . . . Robot Schematics Acquired . | . . . . . . . . Robots Built . | . . . . . . . . Authchips . | . . . . . . . . Time . | . . . . . . . . Total Robot Build Rating . | . . . . . . . . Part Schematics Acquired . | . . . . . . . . Parts Built . | . . . . . . . . Authchips . | . . . . . . . . Time . | . . . . . . . . Total Part Build Rating . | . . . . . . . . Parts Repaired . | . . . . . . . . Time . | . . . . . . . . Parts Recycled . | . . . . . . . . Recycled Matter . | . . . . . . . . Retrieved Matter . | . . . . . . . . Retrieved Components . | . . . . . . . . Parts Scanalyzed . | . . . . . . . . Part Schematics Acquired . | . . . . . . . . Parts Damaged . | . . . . . . . . Bothacking | -11 -10 -10 -7 -7 -5 -5 -5 ------------ Run | Yrd Mat Sub Rec Scr Fac Ext Cet Used RIF Installer . | . . . . . . . . Robots Hacked . | . . . . . . . . Non-combat . | . . . . . . . . Combat . | . . . . . . . . Robot Hacks Applied . | . . . . . . . . Relay Couplers Released . | . . . . . . . . Fabnet Peak Effective % . | . . . . . . . . Robots Rewired 15 | . . . . . . 15 . Allies Hacked . | . . . . . . . . Hacks Repelled . | . . . . . . . . Allies | -11 -10 -10 -7 -7 -5 -5 -5 -------- Run | Yrd Mat Sub Rec Scr Fac Ext Cet Total Allies 21 | . . . . . . 21 . Largest Group 12 | . . . . . . 12 9 Highest-Rated Group 474 | . . . . . . 474 253 Highest-Rated Ally 159 | . . . . . . 159 39 Total Orders . | . . . . . . . . Ally Attacks 254 | . . . . . . 252 2 Total Damage 6063 | . . . . . . 6028 35 Kills 43 | . . . . . . 43 . Allies Corrupted . | . . . . . . . . Allies Melted . | . . . . . . . . Intel | -11 -10 -10 -7 -7 -5 -5 -5 ------- Run | Yrd Mat Sub Rec Scr Fac Ext Cet Active Infowar (turns) . | . . . . . . . . Robot Analysis Total 4 | . . . . 4 . . . Derelict Logs Recovered 1 | . . . . 1 . . . Drone Launches . | . . . . . . . . Drone Recoveries . | . . . . . . . . Exploration | -11 -10 -10 -7 -7 -5 -5 -5 ------------- Run | Yrd Mat Sub Rec Scr Fac Ext Cet Turns Passed 5966 | 28 565 388 337 1820 1027 1772 29 Spaces Moved 3349 | 45 265 270 151 1359 465 782 12 Core 76 | 45 30 . 1 . . . . Treads 194 | . . . 9 . 85 100 . Legs 819 | . . . . . 125 682 12 Wheels 2260 | . 235 270 141 1359 255 . . Hover . | . . . . . . . . Flight . | . . . . . . . . Fastest Speed 50 | 50 50 130 130 115 110 120 120 Average Speed 135 | 50 125 130 148 131 141 145 120 Slowest Speed 800 | 50 130 130 800 145 250 330 120 Overloaded Moves . | . . . . . . . . Propulsion Burnouts . | . . . . . . . . Robots Hopped . | . . . . . . . . Potential Cave-ins . | . . . . . . . . Cave-ins Triggered 1 | . . . . . 1 . . Exploration Rate (%) 37 | 3 32 29 37 89 15 87 9 Regions Visited 7 Branch Regions 5 Pre-discovered Areas 4 | . . . . 4 . . . Known Exits Taken 2 | . . . . 1 1 . . Unknown Exits Taken 5 | 1 1 1 1 . . 1 . Scrap Searched 6 | . . . . 6 . . . Spaces Dug 18 | . 5 2 . . 11 . . Terrain Destroyed 18 | . 5 2 . . 11 . . Melee 18 | . 5 2 . . 11 . . Projectile . | . . . . . . . . AOE . | . . . . . . . . Terrain Rammed . | . . . . . . . . Walls Destroyed . | . . . . . . . . Machines Disabled . | . . . . . . . . Actions | -11 -10 -10 -7 -7 -5 -5 -5 --------- Run | Yrd Mat Sub Rec Scr Fac Ext Cet Total 4443 | 49 428 293 203 1393 697 1354 26 Wait 559 | . 107 9 7 4 76 342 14 Move 3342 | 44 264 269 150 1358 464 781 12 Hop . | . . . . . . . . Pick Up 94 | 5 9 3 7 17 19 34 . Fast Attach 5 | . 5 . . . . . . Attach 61 | . 3 . 6 2 33 17 . Detach 2 | . . 1 . . . 1 . Swap 18 | . 4 4 1 1 1 7 . Drop 20 | . 1 . . 11 6 2 . Fire 58 | . 24 2 32 . . . . Melee 150 | . 11 5 . . 97 37 . Ram . | . . . . . . . . Kick 1 | . . . . . 1 . . Crush . | . . . . . . . . Escape Stasis . | . . . . . . . . Rewire 125 | . . . . . . 125 . Trap . | . . . . . . . . Miscellaneous 8 | . . . . . . 8 . Route ------- -11/Scrapyard -10/Materials (discovered 4 exits: [*Mat x2] / [*Min] / [*Sub]) -10/Subcaves -7/Recycling -7/Scraptown (discovered 2 exits: *Fac x2) -5/Factory (discovered 6 exits: *Fac x3 / *Upp / *Ext x2) -5/Extension (discovered 2 exits: *Fac / [*Cet]) -5/Cetus History --------- Turn | Location | Event 6 | -11/Scrapyard | Discovered new exit (range 14) 29 | -11/Scrapyard | Entered Materials 302 | -10/Materials | Build established: Mutant 370 | -10/Materials | Discovered new exit (range 5) 400 | -10/Materials | Discovered new exit (range 16) 484 | -10/Materials | Discovered new exit (range 15) 578 | -10/Materials | Discovered new exit (range 6) 594 | -10/Materials | Entered Subcaves 809 | -10/Subcaves | Shifting Twisted Machinery released Hvy. Battle Rifle 815 | -10/Subcaves | Shifting Twisted Machinery released Flamer 926 | -10/Subcaves | Visited triangular shrine 934 | -10/Subcaves | Found Prototype Device 942 | -10/Subcaves | Identified V3-11A's Pendant 978 | -10/Subcaves | Discovered new exit (range 3) 982 | -10/Subcaves | Entered Recycling 1171 | -7/Recycling | Core integrity fell below 50% 1210 | -7/Recycling | Lost 4 parts (1p2n1w) 1287 | -7/Recycling | Scanned before Scraplab entrance 1306 | -7/Recycling | Entered Scraplab 1317 | -7/Recycling | Discovered new exit (range 2) 1319 | -7/Recycling | Entered Scraptown 1397 | -7/Scraptown | Delivered V3-11A's Pendant to T0-NE2 in exchange for information 1827 | -7/Scraptown | Scanned Subdweller tech in exchange for log data 1846 | -7/Scraptown | Discovered new exit (range 11) 1932 | -7/Scraptown | Visited TADAMA 1974 | -7/Scraptown | Visited Comm Corps 2013 | -7/Scraptown | Visited Cyclists 2025 | -7/Scraptown | Visited Bundlers 2143 | -7/Scraptown | Visited Fellowship of the Rings 2198 | -7/Scraptown | Visited Awakened 2226 | -7/Scraptown | Visited UFD Registry 2226 | -7/Scraptown | Registered with UFD as "Cargodriver" 2457 | -7/Scraptown | Visited Junk Repository 2701 | -7/Scraptown | Visited Analyses Database 2731 | -7/Scraptown | Visited Scrapoid Pod Storage 2761 | -7/Scraptown | Visited Cartography Club 2790 | -7/Scraptown | Found Surveybot 17 Chip 2849 | -7/Scraptown | Found Deep Structural Scanner 2861 | -7/Scraptown | Learned location of Cetus (-5) 2861 | -7/Scraptown | Learned location of Hub_04(d) (-5) 2861 | -7/Scraptown | Learned location of Armory (-4) 2861 | -7/Scraptown | Learned 8 Factory zone layouts 2861 | -7/Scraptown | Learned 16 Factory zone layouts 2861 | -7/Scraptown | Learned 8 Research zone layouts 2861 | -7/Scraptown | Learned 12 Research zone layouts 2861 | -7/Scraptown | Learned 4 Access zone layouts 2861 | -7/Scraptown | Learned 8 Upper Caves zone layouts 2861 | -7/Scraptown | Learned 8 Access zone layouts 2861 | -7/Scraptown | Learned 12 Proximity Caves zone layouts 2861 | -7/Scraptown | Learned Factory emergency access door positions 2861 | -7/Scraptown | Learned location of 2 exits from Upper Caves 2861 | -7/Scraptown | Learned location of 3 exits from Factory 2861 | -7/Scraptown | Identified exit to Factory 2985 | -7/Scraptown | Visited Abandonware Association 2993 | -7/Scraptown | Learned abandonware demo "OVRCLOCK.EXE" 2996 | -7/Scraptown | Learned abandonware demo "KABOOM.EXE" 2996 | -7/Scraptown | Learned abandonware demo "POISON.EXE" 3024 | -7/Scraptown | Visited Sword Containment 3065 | -7/Scraptown | Visited Research Penetration Think Tank 3139 | -7/Scraptown | Entered Factory 3139 | -5/Factory | Evolved 10 slots: Propulsion x3, Utility x7 3140 | -5/Factory | Identified exit to Extension 3141 | -5/Factory | Identified exit to Factory 3142 | -5/Factory | Identified exit to Upper Caves 3816 | -5/Factory | Lost 8 parts (3p3n2u) 3835 | -5/Factory | Core integrity fell below 50% 3847 | -5/Factory | Crushed by falling debris 3847 | -5/Factory | System corruption reached 10% 3942 | -5/Factory | Lost 10 parts (1p7n2u) 3948 | -5/Factory | Core integrity fell below 20% 3978 | -5/Factory | Lost 3 parts (1n2u) 4074 | -5/Factory | Discovered exit to Factory (range 16) 4166 | -5/Factory | Entered Extension 4252 | -5/Extension | Rescued a captive Derelict 4253 | -5/Extension | Rescued a captive Derelict 4486 | -5/Extension | Rescued A7 4677 | -5/Extension | Lost 4 allies 4970 | -5/Extension | Build established: Commander-Mutant 5197 | -5/Extension | Spotted B-75 Beast 5205 | -5/Extension | Allies destroyed B-75 Beast 5209 | -5/Extension | Spotted B-75 Beast 5232 | -5/Extension | Allies destroyed B-75 Beast 5267 | -5/Extension | Lost 5 allies 5377 | -5/Extension | Rescued a captive Derelict 5378 | -5/Extension | Rescued a captive Derelict 5617 | -5/Extension | Rescued a captive Derelict 5729 | -5/Extension | Allies destroyed A7 5734 | -5/Extension | Extracted ID and sensor layout for unrecognized location from A7's data core 5893 | -5/Extension | Discovered exit to Factory (range 10) 5894 | -5/Extension | Discovered new exit (range 6) 5938 | -5/Extension | Entered Cetus 5938 | -5/Cetus | Accompanied by 9 allies 5967 | -5/Cetus | Self-destructed Last Messages --------------- U-05 Engineer exits Transfer Station. R-10 Processor exits Transfer Station. U-05 Engineer enters Transfer Station. K-01 Serf exits Transfer Station. System corrupted: Matter fused (-7). U-05 Engineer exits Transfer Station. EXIT=FOUND: FACTORY EXIT=FOUND R-10 Processor enters Transfer Station. U-05 Engineer exits Transfer Station. R-10 Processor exits Transfer Station. U-05 Engineer exits Transfer Station. R-10 Processor enters Transfer Station. K-01 Serf enters Transfer Station. U-05 Engineer enters Transfer Station. T-07 Excavator exits Transfer Station. R-10 Processor exits Transfer Station. LOCATION=UNKNOWN GOAL=ESCAPE M S